bitfinex-derivatives/quotes_BTCF0:USTF0_20250508
["timestamp","ask_amount","ask_price","bid_price","bid_amount"]
[1746697181583,0.07884,99637.0,99630.0,0.2007126]
[1746697181787,0.07884,99637.0,99630.0,0.2707126]
[1746697181988,0.0325,99636.0,99630.0,0.2707126]
[1746697182190,0.35929522,99631.0,99630.0,0.2707126]
[1746697182486,0.35929522,99631.0,99630.0,0.3340126]
[1746697182988,0.36029522,99631.0,99630.0,0.3340126]
[1746697183778,0.36029522,99631.0,99630.0,0.3350126]
[1746697184287,0.001,99631.0,99630.0,0.3350126]
[1746697184490,0.001,99631.0,99630.0,0.34504847]
[1746697184687,0.001,99631.0,99630.0,0.34354847]
[1746697184888,0.02999469,99631.0,99630.0,0.34354847]
[1746697185280,0.06219469,99631.0,99630.0,0.34354847]
[1746697185487,0.06219469,99631.0,99630.0,0.3335126]
[1746697186185,0.23019469,99631.0,99630.0,0.3335126]
[1746697187292,0.22868991,99631.0,99630.0,0.3335126]
[1746697187588,0.22868991,99631.0,99630.0,0.3320126]
[1746697189086,0.22868991,99631.0,99630.0,0.34216975]
[1746697189781,0.22868991,99631.0,99630.0,0.34066975]
[1746697189981,0.2271846,99631.0,99630.0,0.34066975]
[1746697190789,0.2271846,99631.0,99630.0,0.3305126]
[1746697191291,0.0591846,99631.0,99630.0,0.3305126]
[1746697191891,0.0591846,99631.0,99630.0,0.34060753]
[1746697192391,0.22567982,99631.0,99630.0,0.34060753]
[1746697192796,0.22567982,99631.0,99630.0,0.33910753]
[1746697193191,0.05767982,99631.0,99630.0,0.33910753]
[1746697194093,0.22567982,99631.0,99630.0,0.33910753]
[1746697195002,0.22567982,99631.0,99630.0,0.33760753]
[1746697195188,0.22417451,99631.0,99630.0,0.33760753]
[1746697196098,0.05617451,99631.0,99630.0,0.33760753]
[1746697197196,0.22417451,99631.0,99630.0,0.33760753]
[1746697197495,0.22266973,99631.0,99630.0,0.33760753]
[1746697197683,0.22266973,99631.0,99630.0,0.33610753]
[1746697198396,0.4137175,99631.0,99630.0,0.33610753]
[1746697199096,0.05466973,99631.0,99630.0,0.50410753]
[1746697199391,0.02246973,99631.0,99630.0,0.52410753]
[1746697199984,0.02246973,99631.0,99630.0,0.52260753]
[1746697200193,0.02246973,99631.0,99630.0,0.35460753]
[1746697200390,0.02096442,99631.0,99630.0,0.35460753]
[1746697202692,0.01945964,99631.0,99630.0,0.35460753]
[1746697202894,0.01945964,99631.0,99630.0,0.35310753]
[1746697204701,0.01945964,99631.0,99630.0,0.33310753]
[1746697205103,0.18745964,99631.0,99630.0,0.33310753]
[1746697205397,0.18595433,99631.0,99630.0,0.33160753]
[1746697207805,0.18444955,99631.0,99630.0,0.33160753]
[1746697208007,0.18444955,99631.0,99630.0,0.33010753]
[1746697208197,0.01644955,99631.0,99630.0,0.33010753]
[1746697209405,0.20749732,99631.0,99630.0,0.33010753]
[1746697210308,0.37549732,99631.0,99630.0,0.32860753]
[1746697210508,0.37399201,99631.0,99630.0,0.32860753]
[1746697210894,0.37399201,99631.0,99630.0,0.33860753]
[1746697212909,0.37248723,99631.0,99630.0,0.33860753]
[1746697213112,0.37248723,99631.0,99630.0,0.33710753]
[1746697214112,0.20448723,99631.0,99630.0,0.33710753]
[1746697214409,0.20448723,99631.0,99630.0,0.25710753]
[1746697214610,0.20448723,99631.0,99630.0,0.32710753]
[1746697215611,0.20448723,99631.0,99630.0,0.32560753]
[1746697215811,0.20298192,99631.0,99630.0,0.32560753]
[1746697217113,0.37098192,99631.0,99630.0,0.32560753]
[1746697218113,0.20147714,99631.0,99630.0,0.32560753]
[1746697218514,0.23457714,99631.0,99630.0,0.32410753]
[1746697219114,0.40257714,99631.0,99630.0,0.32410753]
[1746697220114,0.23457714,99631.0,99630.0,0.32410753]
[1746697220816,0.36676451,99631.0,99630.0,0.32260753]
[1746697221015,0.3652592,99631.0,99630.0,0.32260753]
[1746697222313,0.5332592,99631.0,99630.0,0.32260753]
[1746697223320,0.53175442,99631.0,99630.0,0.32260753]
[1746697223618,0.53175442,99631.0,99630.0,0.32110753]
[1746697226111,0.53175442,99631.0,99630.0,0.31960753]
[1746697226317,0.53024911,99631.0,99630.0,0.31960753]
[1746697228223,0.36224911,99631.0,99630.0,0.31960753]
[1746697228420,0.36074433,99631.0,99630.0,0.31960753]
[1746697228934,0.36074433,99631.0,99630.0,0.31810753]
[1746697230141,0.52874433,99631.0,99630.0,0.31810753]
[1746697231044,0.52874433,99631.0,99630.0,0.31660753]
[1746697231339,0.52723902,99631.0,99630.0,0.31660753]
[1746697234042,0.52573424,99631.0,99630.0,0.31660753]
[1746697234346,0.52573424,99631.0,99630.0,0.31510753]
[1746697236142,0.35773424,99631.0,99630.0,0.31510753]
[1746697236643,0.35773424,99631.0,99630.0,0.31360753]
[1746697236834,0.35622893,99631.0,99630.0,0.31360753]
[1746697237235,0.52422893,99631.0,99630.0,0.31360753]
[1746697238142,0.35622893,99631.0,99630.0,0.31360753]
[1746697239138,0.52272415,99631.0,99630.0,0.31360753]
[1746697239447,0.52272415,99631.0,99630.0,0.31210753]
[1746697241848,0.52272415,99631.0,99630.0,0.31060753]
[1746697242040,0.52121884,99631.0,99630.0,0.31060753]
[1746697242239,0.52121884,99631.0,99630.0,0.27790753]
[1746697244248,0.51971406,99631.0,99630.0,0.27790753]
[1746697244547,0.51971406,99631.0,99630.0,0.27640753]
[1746697246849,0.51971406,99631.0,99630.0,0.27490753]
[1746697247052,0.51820875,99631.0,99630.0,0.27490753]
[1746697247452,0.51820875,99631.0,99630.0,0.1627126]
[1746697247851,0.55090875,99631.0,99630.0,0.1627126]
[1746697248959,0.75161935,99631.0,99630.0,0.1627126]
[1746697249145,0.55090875,99631.0,99630.0,0.1627126]
[1746697249545,0.54940397,99631.0,99630.0,0.1627126]
[1746697249754,0.54940397,99631.0,99630.0,0.1612126]
[1746697252247,0.54789866,99631.0,99630.0,0.1597126]
[1746697254753,0.54639388,99631.0,99630.0,0.1597126]
[1746697254951,0.54639388,99631.0,99630.0,0.1582126]
[1746697257560,0.54639388,99631.0,99630.0,0.1567126]
[1746697257854,0.54488857,99631.0,99630.0,0.1567126]
[1746697259665,0.54488857,99631.0,99630.0,0.2467126]
[1746697259951,0.54338379,99631.0,99630.0,0.2467126]
[1746697260156,0.54338379,99631.0,99630.0,0.2452126]
[1746697262561,0.54338379,99631.0,99630.0,0.2437126]
[1746697262857,0.54187848,99631.0,99630.0,0.2437126]
[1746697264964,0.5403737,99631.0,99630.0,0.2437126]
[1746697265254,0.5403737,99631.0,99630.0,0.2422126]
[1746697265652,0.5403737,99631.0,99630.0,0.7222126]
[1746697265858,0.5403737,99631.0,99630.0,0.5322126]
[1746697266760,0.5403737,99631.0,99630.0,0.6022126]
[1746697267660,0.5403737,99631.0,99630.0,0.6007126]
[1746697267862,0.53886839,99631.0,99630.0,0.6007126]
[1746697269358,0.50616839,99631.0,99630.0,0.6007126]
[1746697269559,0.168,99631.0,99630.0,0.6007126]
[1746697269750,0.16758616,99631.0,99630.0,0.7007126]
[1746697269959,0.0800261,99642.0,99630.0,0.13147199]
[1746697269960,0.0015061,99642.0,99630.0,0.13147199]
[1746697270258,1.32e-06,99642.0,99641.0,0.2006904]
[1746697270459,1.32e-06,99642.0,99641.0,0.3191904]
[1746697270656,1.32e-06,99642.0,99641.0,0.4109904]
[1746697271058,1.32e-06,99642.0,99641.0,0.5789904]
[1746697272163,0.00100132,99642.0,99641.0,0.4109904]
[1746697272568,0.00200132,99642.0,99641.0,0.4139904]
[1746697272757,0.00200132,99642.0,99641.0,0.4124904]
[1746697272957,0.00049601,99642.0,99641.0,0.4124904]
[1746697273159,0.00149601,99642.0,99641.0,0.4154904]
[1746697273359,0.00149601,99642.0,99641.0,0.3954904]
[1746697273564,0.00149601,99642.0,99641.0,0.5454904]
[1746697274167,0.00149601,99642.0,99641.0,0.7134904]
[1746697275164,0.36079123,99653.0,99652.0,0.2006683]
[1746697275466,0.36079123,99653.0,99652.0,0.2991683]
[1746697275467,0.71251538,99653.0,99652.0,0.2991683]
[1746697275666,0.35172415,99653.0,99652.0,0.2991683]
[1746697276063,0.35172415,99653.0,99652.0,0.3622683]
[1746697276261,0.32162415,99653.0,99652.0,0.3632683]
[1746697276460,0.32162415,99653.0,99652.0,0.3642683]
[1746697276969,0.32162415,99653.0,99652.0,0.3842683]
[1746697277870,0.32162415,99653.0,99652.0,0.3827683]
[1746697278070,0.18943678,99653.0,99652.0,0.3827683]
[1746697278467,0.18943678,99653.0,99652.0,0.39017125]
[1746697280662,0.187932,99653.0,99652.0,0.39017125]
[1746697282264,0.187932,99653.0,99652.0,0.37017125]
[1746697282569,0.187932,99653.0,99652.0,0.31017125]
[1746697282769,0.187932,99653.0,99652.0,0.31867125]
[1746697282970,0.187932,99653.0,99652.0,0.30867125]
[1746697284460,0.187932,99653.0,99652.0,0.32867125]
[1746697285176,0.18642722,99653.0,99652.0,0.32867125]
[1746697287075,0.18642722,99653.0,99652.0,0.29827125]
[1746697287275,0.18642722,99653.0,99652.0,0.27827125]
[1746697287668,0.18642722,99653.0,99652.0,0.27677125]
[1746697288068,0.18642722,99653.0,99652.0,0.31747125]
[1746697288369,0.18642722,99653.0,99652.0,0.30747125]
[1746697289976,0.18492244,99653.0,99652.0,0.30747125]
[1746697291079,0.35292244,99653.0,99652.0,0.30747125]
[1746697292165,0.18492244,99653.0,99652.0,0.30747125]
[1746697292367,0.18492244,99653.0,99652.0,0.30597125]
[1746697292871,0.31710981,99653.0,99652.0,0.30597125]
[1746697293071,0.31710981,99653.0,99652.0,0.26597125]
[1746697293965,0.31710981,99653.0,99652.0,0.30597125]
[1746697294779,0.31560503,99653.0,99652.0,0.30597125]
[1746697295774,0.31560503,99653.0,99652.0,0.31597125]
[1746697295973,0.31560503,99653.0,99652.0,0.30597125]
[1746697296565,0.18341766,99653.0,99652.0,0.30597125]
[1746697296880,0.18341766,99653.0,99652.0,0.31597125]
[1746697297078,0.18341766,99653.0,99652.0,0.31447125]
[1746697299072,0.10179562,99665.0,99652.0,0.31447125]
[1746697299073,0.10179562,99665.0,99658.0,0.0501636]
[1746697299382,0.10029084,99665.0,99664.0,0.5614441]
[1746697299681,0.1547879,99665.0,99664.0,0.6614441]
[1746697299879,0.28697527,99665.0,99664.0,0.6614441]
[1746697300083,0.35187527,99665.0,99664.0,0.6614441]
[1746697300273,0.35387527,99665.0,99664.0,0.6934441]
[1746697300583,0.35587527,99665.0,99664.0,0.6934441]
[1746697300879,0.35587527,99665.0,99664.0,0.6834441]
[1746697301582,0.35587527,99665.0,99664.0,0.69336654]
[1746697301977,0.35387527,99665.0,99664.0,0.69286654]
[1746697302176,0.35187527,99665.0,99664.0,0.69386654]
[1746697302371,0.25158443,99665.0,99664.0,0.69386654]
[1746697302783,0.25158443,99665.0,99664.0,0.70386654]
[1746697304474,0.25007965,99665.0,99664.0,0.70386654]
[1746697306779,0.25007965,99665.0,99664.0,0.70236654]
[1746697309087,0.24857487,99665.0,99664.0,0.70236654]
[1746697310089,0.41657487,99665.0,99664.0,0.70236654]
[1746697311476,0.41657487,99665.0,99664.0,0.70086654]
[1746697313989,0.41507009,99665.0,99664.0,0.70086654]
[1746697316295,0.41507009,99665.0,99664.0,0.69086654]
[1746697316596,0.41507009,99665.0,99664.0,0.68936654]
[1746697318901,0.41356531,99665.0,99664.0,0.68936654]
[1746697320408,0.41356531,99665.0,99664.0,0.59936654]
[1746697320704,0.41356531,99665.0,99664.0,0.56736654]
[1746697321400,0.41356531,99665.0,99664.0,0.57586654]
[1746697323705,0.41206053,99665.0,99664.0,0.57586654]
[1746697324712,0.61270263,99665.0,99664.0,0.002]
[1746697325103,0.61270263,99665.0,99664.0,0.2026441]
[1746697326202,0.61270263,99665.0,99664.0,0.2011441]
[1746697328407,0.61119785,99665.0,99664.0,0.2011441]
[1746697330710,0.61119785,99665.0,99664.0,0.1996441]
[1746697333108,0.60969307,99665.0,99664.0,0.1996441]
[1746697335414,0.60969307,99665.0,99664.0,0.1981441]
[1746697336411,0.60969307,99665.0,99664.0,0.2281441]
[1746697336614,0.60969307,99665.0,99664.0,0.1981441]
[1746697337812,0.60818829,99665.0,99664.0,0.1981441]
[1746697340208,0.60818829,99665.0,99664.0,0.1966441]
[1746697341811,0.47901048,99665.0,99664.0,0.1966441]
[1746697342018,0.60818829,99665.0,99664.0,0.2291441]
[1746697342909,0.60668351,99665.0,99664.0,0.2291441]
[1746697343519,0.38427487,99665.0,99664.0,0.2291441]
[1746697344110,0.55231697,99665.0,99664.0,0.2291441]
[1746697344308,0.35167487,99665.0,99664.0,0.2291441]
[1746697345015,0.35167487,99665.0,99664.0,0.2376441]
[1746697345314,0.18367487,99665.0,99664.0,0.2376441]
[1746697346320,0.18367487,99665.0,99664.0,0.2276441]
[1746697347620,0.18217009,99665.0,99664.0,0.2276441]
[1746697350022,0.18217009,99665.0,99664.0,0.2261441]
[1746697352126,0.18066531,99665.0,99664.0,0.2261441]
[1746697354422,0.18066531,99665.0,99664.0,0.2246441]
[1746697354625,0.18166531,99665.0,99664.0,0.2276441]
[1746697356125,0.18266531,99665.0,99664.0,0.2306441]
[1746697356726,0.18116053,99665.0,99664.0,0.2306441]
[1746697359529,0.18116053,99665.0,99664.0,0.2291441]
[1746697359713,0.21126053,99665.0,99664.0,0.2291441]
[1746697360330,0.41190263,99665.0,99664.0,0.2291441]
[1746697361230,0.57990263,99665.0,99664.0,0.2291441]
[1746697361827,0.57839785,99665.0,99664.0,0.2291441]
[1746697364136,0.57839785,99665.0,99664.0,0.2276441]
[1746697366435,0.57689307,99665.0,99664.0,0.2276441]
[1746697366636,0.57689307,99665.0,99664.0,0.2066441]
[1746697367135,0.60889307,99665.0,99664.0,0.2066441]
[1746697368737,0.60889307,99665.0,99664.0,0.2051441]
[1746697369036,0.60889307,99665.0,99664.0,0.0045]
[1746697369337,0.60889307,99665.0,99664.0,0.2051441]
[1746697370731,0.60889307,99665.0,99664.0,0.0045]
[1746697371238,0.60738829,99665.0,99664.0,0.2051441]
[1746697371731,0.48272482,99665.0,99664.0,0.2051441]
[1746697371937,0.60738829,99665.0,99664.0,0.2051441]
[1746697372935,0.60738829,99665.0,99664.0,0.0045]
[1746697373135,0.60738829,99665.0,99664.0,0.2051441]
[1746697373674,0.60738829,99665.0,99664.0,0.2036441]
[1746697374860,0.96818829,99665.0,99664.0,0.2036441]
[1746697375852,0.96668351,99665.0,99664.0,0.2036441]
[1746697378549,0.96668351,99665.0,99664.0,0.2021441]
[1746697379939,0.96668351,99665.0,99664.0,0.0015]
[1746697380334,0.96668351,99665.0,99664.0,0.2021441]
[1746697380642,0.96517873,99665.0,99664.0,0.0015]
[1746697381342,0.2006522,99660.0,99659.0,0.2332542]
[1746697381544,0.37529839,99660.0,99659.0,0.2332542]
[1746697382244,0.57379839,99660.0,99659.0,0.2332542]
[1746697382635,0.57479839,99660.0,99659.0,0.2362542]
[1746697383142,0.57479839,99660.0,99659.0,0.2347542]
[1746697383443,0.60769839,99660.0,99659.0,0.2377542]
[1746697384035,0.60769839,99660.0,99659.0,0.2682542]
[1746697385442,0.60619361,99660.0,99659.0,0.2682542]
[1746697386941,0.60619361,99660.0,99659.0,0.2377542]
[1746697387749,0.60619361,99660.0,99659.0,0.2362542]
[1746697390048,0.60468883,99660.0,99659.0,0.2362542]
[1746697392450,0.60468883,99660.0,99659.0,0.2347542]
[1746697392750,0.96548883,99660.0,99659.0,0.2347542]
[1746697394852,0.97914405,99660.0,99659.0,0.2347542]
[1746697395053,0.97914405,99660.0,99659.0,0.2660542]
[1746697397258,0.97914405,99660.0,99659.0,0.2645542]
[1746697399456,0.97763927,99660.0,99659.0,0.2645542]
[1746697401966,0.97763927,99660.0,99659.0,0.2630542]
[1746697403664,0.92765655,99660.0,99659.0,0.2630542]
[1746697403868,0.80299308,99660.0,99659.0,0.2630542]
[1746697404259,0.8014883,99660.0,99659.0,0.2630542]
[1746697406874,0.8090122,99660.0,99659.0,0.2615542]
[1746697408971,0.8090122,99660.0,99659.0,0.27696104]
[1746697409371,0.80750742,99660.0,99659.0,0.27696104]
[1746697410274,0.44670742,99660.0,99659.0,0.27696104]
[1746697410480,0.44670742,99660.0,99659.0,0.27702301]
[1746697410676,0.47670742,99660.0,99659.0,0.27702301]
[1746697411880,0.47670742,99660.0,99659.0,0.27552301]
[1746697412575,0.47670742,99660.0,99659.0,0.27555035]
[1746697414080,0.47520264,99660.0,99659.0,0.27555035]
[1746697416079,0.47520264,99660.0,99659.0,0.2600542]
[1746697416381,0.47520264,99660.0,99659.0,0.27557621]
[1746697416581,0.47520264,99660.0,99659.0,0.27407621]
[1746697417973,0.47520264,99660.0,99659.0,0.27417959]
[1746697418472,0.50600264,99660.0,99659.0,0.27417959]
[1746697418878,0.50449786,99660.0,99659.0,0.27417959]
[1746697421487,0.50449786,99660.0,99659.0,0.27267959]
[1746697421785,0.50449786,99660.0,99659.0,0.27265057]
[1746697422779,0.50449786,99660.0,99659.0,0.02159637]
[1746697422979,0.62916133,99660.0,99659.0,0.02159637]
[1746697423483,0.62916133,99660.0,99659.0,0.22225057]
[1746697423687,0.62765655,99660.0,99659.0,0.22225057]
[1746697423883,0.67763927,99660.0,99659.0,0.02159637]
[1746697424084,0.2006763,99648.0,99647.0,0.00150531]
[1746697424285,0.37532249,99648.0,99647.0,0.01716638]
[1746697424983,0.43872249,99648.0,99647.0,0.01716638]
[1746697425490,0.44372249,99648.0,99647.0,0.01816638]
[1746697425879,0.44972249,99648.0,99647.0,0.01816638]
[1746697426080,0.44972249,99648.0,99647.0,0.00100531]
[1746697428585,0.44821771,99648.0,99647.0,0.00100531]
[1746697429082,0.44821771,99648.0,99647.0,0.01654267]
[1746697430787,0.44821771,99648.0,99647.0,0.01504267]
[1746697431192,0.2006884,99642.0,99641.0,0.2006895]
[1746697431389,0.2780484,99642.0,99641.0,0.2006895]
[1746697431591,0.2006924,99640.0,99639.0,0.2831665]
[1746697432183,0.2945924,99640.0,99639.0,0.2831665]
[1746697432895,0.2007267,99627.0,99623.0,0.0501812]
[1746697433193,0.2007267,99627.0,99626.0,0.2602206]
[1746697433381,0.19922139,99627.0,99626.0,0.2602206]
[1746697434189,0.19922139,99627.0,99626.0,0.4282206]
[1746697435197,0.20122139,99627.0,99626.0,0.4282206]
[1746697435383,0.20422139,99627.0,99626.0,0.4282206]
[1746697435591,0.20271661,99627.0,99626.0,0.4282206]
[1746697435785,0.20271661,99627.0,99626.0,0.4267206]
[1746697436186,0.005,99627.0,99626.0,0.4267206]
[1746697436389,0.005,99627.0,99626.0,0.4605206]
[1746697436583,0.2057186,99627.0,99626.0,0.4605206]
[1746697437296,0.005,99627.0,99626.0,0.5505206]
[1746697438298,0.005,99627.0,99626.0,0.5490206]
[1746697438590,0.00349469,99627.0,99626.0,0.5490206]
[1746697438785,0.07736,99642.0,99641.0,0.2006904]
[1746697439191,0.07736,99642.0,99641.0,0.3686904]
[1746697439998,0.08236,99642.0,99641.0,0.4329904]
[1746697440493,0.005,99642.0,99641.0,0.4329904]
[1746697440692,0.005,99642.0,99641.0,0.6233504]
[1746697440895,0.00349522,99642.0,99641.0,0.6233504]
[1746697441100,0.00349522,99642.0,99641.0,0.6218504]
[1746697441392,0.00349522,99642.0,99641.0,0.6118504]
[1746697441693,0.00749522,99642.0,99641.0,0.6128504]
[1746697442702,0.00749522,99642.0,99641.0,0.62853701]
[1746697443400,0.00749522,99642.0,99641.0,0.62703701]
[1746697443590,0.00598991,99642.0,99641.0,0.62702861]
[1746697444701,0.00598991,99642.0,99641.0,0.63702861]
[1746697445090,0.07716,99660.0,99649.0,0.0501683]
[1746697445288,0.07716,99660.0,99659.0,0.2006542]
[1746697445494,0.07716,99660.0,99659.0,0.23633957]
[1746697445695,0.07716,99660.0,99659.0,0.33143957]
[1746697445896,0.07565522,99660.0,99659.0,0.33143957]
[1746697446102,0.07565522,99660.0,99659.0,0.49793957]
[1746697446399,0.07865522,99660.0,99659.0,0.49793957]
[1746697446592,0.07965522,99660.0,99659.0,0.50193957]
[1746697447301,0.07965522,99660.0,99659.0,0.50193939]
[1746697447798,0.07765522,99660.0,99659.0,0.50593939]
[1746697448795,0.07765522,99660.0,99659.0,0.50443939]
[1746697449191,0.07765522,99660.0,99659.0,0.50443935]
[1746697451104,0.07615044,99660.0,99659.0,0.50443938]
[1746697454101,0.07615044,99660.0,99659.0,0.50293938]
[1746697456707,0.07464566,99660.0,99659.0,0.50293938]
[1746697457606,0.002,99660.0,99659.0,0.53293938]
[1746697458210,0.002,99660.0,99659.0,0.54293938]
[1746697458601,0.002,99660.0,99659.0,0.54293876]
[1746697459098,0.002,99660.0,99659.0,0.54143876]
[1746697459805,0.002,99660.0,99659.0,0.5257542]
[1746697460008,0.002,99660.0,99659.0,0.5157542]
[1746697461611,0.00049522,99660.0,99659.0,0.5157542]
[1746697463912,0.00049522,99660.0,99659.0,0.5142542]
[1746697465105,0.03049522,99660.0,99659.0,0.5142542]
[1746697466207,0.02899044,99660.0,99659.0,0.5142542]
[1746697466419,0.02899044,99660.0,99659.0,0.5299395]
[1746697468715,0.02899044,99660.0,99659.0,0.5284395]
[1746697469815,0.02899044,99660.0,99659.0,0.52843946]
[1746697470419,0.02899044,99660.0,99659.0,0.50843946]
[1746697471019,0.02748566,99660.0,99659.0,0.50843946]
[1746697471619,0.02748566,99660.0,99659.0,0.50843945]
[1746697473527,0.02748566,99660.0,99659.0,0.50692017]
[1746697475723,0.02598088,99660.0,99659.0,0.50692017]
[1746697476022,0.033,99661.0,99660.0,0.2006522]
[1746697476224,0.20764619,99661.0,99660.0,0.32001817]
[1746697477026,0.033,99661.0,99660.0,0.32001817]
[1746697477331,0.035,99661.0,99660.0,0.68603736]
[1746697477526,0.035,99661.0,99660.0,0.49603736]
[1746697478115,0.035,99661.0,99660.0,0.49453736]
[1746697480535,0.03349522,99661.0,99660.0,0.49453736]
[1746697482820,0.03349522,99661.0,99660.0,0.49303736]
[1746697485133,0.03199044,99661.0,99660.0,0.49303736]
[1746697486138,0.06509044,99661.0,99660.0,0.49303736]
[1746697487635,0.06509044,99661.0,99660.0,0.49153736]
[1746697488533,0.06509044,99661.0,99660.0,0.49135819]
[1746697489927,0.06358566,99661.0,99660.0,0.49135819]
[1746697490437,0.06358566,99661.0,99660.0,0.49137452]
[1746697490735,0.11356838,99661.0,99660.0,0.45967452]
[1746697490933,0.23823185,99661.0,99660.0,0.45967452]
[1746697491733,0.11356838,99661.0,99660.0,0.45967452]
[1746697492034,0.23823185,99661.0,99660.0,0.45958744]
[1746697492230,0.23823185,99661.0,99660.0,0.45808744]
[1746697494240,0.23823185,99661.0,99660.0,0.45816577]
[1746697494535,0.23672707,99661.0,99660.0,0.45816577]
[1746697496138,0.23672707,99661.0,99660.0,0.4581904]
[1746697496837,0.23672707,99661.0,99660.0,0.4566904]
[1746697499837,0.23522229,99661.0,99660.0,0.45669916]
[1746697502141,0.23522229,99661.0,99660.0,0.45519916]
[1746697503051,0.23522229,99661.0,99660.0,0.45521136]
[1746697504355,0.23371751,99661.0,99660.0,0.45521136]
[1746697505755,0.23371751,99661.0,99660.0,0.46521136]
[1746697505950,0.23371751,99661.0,99660.0,0.45521136]
[1746697506955,0.23371751,99661.0,99660.0,0.45371136]
[1746697508553,0.20061751,99661.0,99660.0,0.48371136]
[1746697508758,0.20061751,99661.0,99660.0,0.82371136]
[1746697509156,0.19911273,99661.0,99660.0,0.82371136]
[1746697510052,0.002,99661.0,99660.0,0.82371136]
[1746697511358,0.002,99661.0,99660.0,0.82221136]
[1746697512251,0.0655,99661.0,99660.0,0.82217519]
[1746697513958,0.06399522,99661.0,99660.0,0.82217519]
[1746697514161,0.06399522,99661.0,99660.0,0.82206467]
[1746697515859,0.06399522,99661.0,99660.0,0.8220436]
[1746697517057,0.06399522,99661.0,99660.0,0.8205436]
[1746697519064,0.06399522,99661.0,99660.0,0.7905436]
[1746697519365,0.06249044,99661.0,99660.0,0.7905436]
[1746697519753,0.06249044,99661.0,99660.0,0.79068621]
[1746697521865,0.06249044,99661.0,99660.0,0.78918621]
[1746697523460,0.06249044,99661.0,99660.0,0.78929615]
[1746697524465,0.06098566,99661.0,99660.0,0.78929615]
[1746697526763,0.06098566,99661.0,99660.0,0.78779615]
[1746697527169,0.06098566,99661.0,99660.0,0.78753773]
[1746697527552,0.06098566,99661.0,99660.0,0.7721522]
[1746697528756,0.06098566,99661.0,99660.0,0.78776786]
[1746697528957,0.05948088,99661.0,99660.0,0.78776786]
[1746697530966,0.05948088,99661.0,99660.0,0.7878364]
[1746697531466,0.05948088,99661.0,99660.0,0.7863364]
[1746697531962,0.05948088,99661.0,99660.0,0.7706522]
[1746697532166,0.05948088,99661.0,99660.0,0.78633648]
[1746697532869,0.05948088,99661.0,99660.0,0.78633652]
[1746697533769,0.0579761,99661.0,99660.0,0.78633652]
[1746697534971,0.18263957,99661.0,99660.0,0.78633652]
[1746697536269,0.18263957,99661.0,99660.0,0.78483652]
[1746697536570,0.18263957,99661.0,99660.0,0.78483648]
[1746697537969,0.15183957,99661.0,99660.0,0.78483648]
[1746697538363,0.20182229,99661.0,99660.0,0.78483648]
[1746697538562,0.20031751,99661.0,99660.0,0.78483648]
[1746697539768,0.20031751,99661.0,99660.0,0.79483648]
[1746697540973,0.20031751,99661.0,99660.0,0.79333648]
[1746697542572,0.20031751,99661.0,99660.0,1.15413648]
[1746697543071,0.07565404,99661.0,99660.0,1.15413648]
[1746697543268,0.00150565,99662.0,99661.0,0.2006501]
[1746697543464,0.04998359,99662.0,99661.0,0.71093438]
[1746697543967,0.04998359,99662.0,99661.0,0.71093356]
[1746697544170,0.04998359,99662.0,99661.0,0.87893356]
[1746697544469,0.05098359,99662.0,99661.0,0.88393356]
[1746697545172,0.00200087,99662.0,99661.0,0.88793356]
[1746697545771,0.00200087,99662.0,99661.0,0.88643356]
[1746697548070,0.00049609,99662.0,99661.0,0.88643356]
[1746697550273,0.00049609,99662.0,99661.0,0.88493356]
[1746697551573,0.00049609,99662.0,99661.0,0.88461168]
[1746697552174,0.00049609,99662.0,99661.0,1.24554228]
[1746697552677,0.06019131,99665.0,99664.0,0.2006441]
[1746697552864,0.06019131,99665.0,99664.0,0.57613628]
[1746697553068,0.2348375,99665.0,99664.0,0.57613628]
[1746697553274,0.2348375,99665.0,99664.0,0.74413628]
[1746697553477,0.2348375,99665.0,99664.0,0.80828716]
[1746697554077,0.2358375,99665.0,99664.0,0.81228716]
[1746697554580,0.2368375,99665.0,99664.0,0.81628716]
[1746697555073,0.2368375,99665.0,99664.0,0.81478716]
[1746697557173,0.2368375,99665.0,99664.0,0.81492763]
[1746697557475,0.23533272,99665.0,99664.0,0.81492763]
[1746697559767,0.23533272,99665.0,99664.0,0.81342763]
[1746697561174,0.20453272,99665.0,99664.0,0.81342763]
[1746697561374,0.17664619,99665.0,99664.0,0.81342763]
[1746697562281,0.01001316,99697.0,99681.0,0.2006099]
[1746697562472,0.01001316,99697.0,99682.0,0.2006079]
[1746697562473,0.0302,99683.0,99682.0,0.2006079]
[1746697562681,0.0302,99683.0,99682.0,1.00709103]
[1746697563077,0.0302,99683.0,99682.0,1.17509103]
[1746697563278,0.0302,99683.0,99682.0,1.20649103]
[1746697563779,0.0302,99683.0,99682.0,1.20749103]
[1746697563984,0.0302,99683.0,99682.0,1.21748889]
[1746697564280,0.0302,99683.0,99682.0,1.20748889]
[1746697564477,0.0302,99683.0,99682.0,1.20598889]
[1746697564983,0.0302,99683.0,99682.0,1.21598889]
[1746697565382,0.0302,99683.0,99682.0,1.21698889]
[1746697566382,0.0326,99689.0,99688.0,0.2005958]
[1746697566585,0.08107794,99689.0,99688.0,0.54627679]
[1746697566777,0.23594141,99689.0,99688.0,0.54627679]
[1746697567183,0.23594141,99689.0,99688.0,0.72427679]
[1746697567489,0.20334141,99689.0,99688.0,0.71427679]
[1746697567684,0.23474141,99689.0,99688.0,0.74677679]
[1746697568184,0.23474141,99689.0,99688.0,0.75683603]
[1746697568485,0.23474141,99689.0,99688.0,0.49683603]
[1746697570285,0.23474141,99689.0,99688.0,0.4968353]
[1746697581291,0.23474141,99689.0,99688.0,0.49683509]
[1746697582989,0.23474141,99689.0,99688.0,0.85763509]
[1746697584988,0.23474141,99689.0,99688.0,0.82513509]
[1746697585192,0.23474141,99689.0,99688.0,0.77507585]
[1746697588195,0.23474141,99689.0,99688.0,0.41427585]
[1746697589195,0.23474141,99689.0,99688.0,0.42409026]
[1746697589694,0.23474141,99689.0,99688.0,0.40841021]
[1746697589893,0.23474141,99689.0,99688.0,0.42357089]
[1746697590896,0.23474141,99689.0,99688.0,0.40841021]
[1746697594499,0.23474141,99689.0,99688.0,0.3985958]
[1746697596900,0.23474141,99689.0,99688.0,0.41406544]
[1746697598100,0.23474141,99689.0,99688.0,0.42414625]
[1746697598599,0.23474141,99689.0,99688.0,0.41406544]
[1746697601190,0.23474141,99689.0,99688.0,0.24606544]
[1746697601393,0.23474141,99689.0,99688.0,0.21606544]
[1746697603291,0.23474141,99689.0,99688.0,0.22606544]
[1746697605096,0.23474141,99689.0,99688.0,0.22621502]
[1746697608598,0.23474141,99689.0,99688.0,0.22622062]
[1746697610809,0.23474141,99689.0,99688.0,0.22625394]
[1746697611808,0.11007794,99689.0,99688.0,0.22625394]
[1746697612003,0.23474141,99689.0,99688.0,0.22625394]
[1746697612203,0.23474141,99689.0,99688.0,0.3785958]
[1746697612405,0.23474141,99689.0,99688.0,0.39425165]
[1746697612713,0.23474141,99689.0,99688.0,0.39425202]
[1746697613312,0.23474141,99689.0,99688.0,0.22625202]
[1746697614212,0.23474141,99689.0,99688.0,0.39425202]